bitfinex-derivatives/quotes_BNBF0:USTF0_20251203
["timestamp","ask_amount","ask_price","bid_price","bid_amount"]
[1764778386389,0.83364121,893.48,892.9,0.8]
[1764778386587,0.63875206,893.47,892.9,0.8]
[1764778386789,0.63875206,893.46,892.9,0.8]
[1764778386989,0.63875206,893.45,892.9,0.8]
[1764778387187,0.63875206,893.44,892.9,0.8]
[1764778387389,0.63875206,893.43,892.9,0.8]
[1764778387587,0.63875206,893.42,892.9,0.8]
[1764778387786,0.63875206,893.41,892.9,0.8]
[1764778388089,0.83364121,893.53,892.9,0.8]
[1764778388090,0.63875206,893.4,892.9,0.8]
[1764778388288,0.63875206,893.39,892.9,0.8]
[1764778388489,0.63875206,893.38,892.9,0.8]
[1764778388685,0.63875206,893.37,892.9,0.8]
[1764778388890,0.63875206,893.36,892.9,0.8]
[1764778389089,0.63875206,893.35,892.9,0.8]
[1764778389291,0.63875206,893.34,892.9,0.8]
[1764778389587,0.63875206,893.33,892.9,0.8]
[1764778389788,0.63875206,893.32,892.9,0.8]
[1764778390086,0.63875206,893.31,892.9,0.8]
[1764778390292,0.83364121,893.67,892.9,0.8]
[1764778390591,0.63848883,893.66,892.9,0.8]
[1764778390892,0.63848883,893.65,892.9,0.8]
[1764778391087,0.63848883,893.64,892.9,0.8]
[1764778391292,0.63848883,893.63,892.9,0.8]
[1764778391493,0.63848883,893.62,892.9,0.8]
[1764778391702,0.63848883,893.61,892.9,0.8]
[1764778391894,0.63848883,893.6,892.9,0.8]
[1764778392090,0.63848883,893.59,892.9,0.8]
[1764778392292,0.63848883,893.58,892.9,0.8]
[1764778392488,0.63848883,893.57,892.9,0.8]
[1764778392691,0.63848883,893.56,892.9,0.8]
[1764778392889,0.63848883,893.55,892.9,0.8]
[1764778393190,0.63848883,893.54,892.9,0.8]
[1764778393391,0.63848883,893.53,892.9,0.8]
[1764778393591,0.63848883,893.52,892.9,0.8]
[1764778393792,0.63848883,893.51,892.91,0.835]
[1764778393994,0.63848883,893.5,892.91,0.835]
[1764778394193,0.63848883,893.49,892.91,0.835]
[1764778394493,0.63848883,893.48,892.91,0.835]
[1764778394692,0.83364121,893.82,892.91,0.835]
[1764778394899,0.63854169,893.81,892.91,0.835]
[1764778395093,0.63854169,893.8,892.91,0.835]
[1764778395292,0.63854169,893.79,892.91,0.835]
[1764778395593,0.63854169,893.78,892.91,0.835]
[1764778395795,0.63854169,893.77,892.91,0.835]
[1764778395997,0.63854169,893.76,892.91,0.835]
[1764778396198,0.63854169,893.75,892.91,0.835]
[1764778396498,0.63854169,893.74,892.91,0.835]
[1764778396699,0.63854169,893.73,892.91,0.835]
[1764778396899,0.63854169,893.72,892.91,0.835]
[1764778397194,0.63854169,893.71,892.91,0.835]
[1764778397393,0.63854169,893.7,892.91,0.835]
[1764778397595,0.63854169,893.69,892.91,0.835]
[1764778397794,0.63854169,893.68,892.91,0.835]
[1764778397999,0.63854169,893.67,892.91,0.835]
[1764778398199,0.63854169,893.66,892.91,0.835]
[1764778398399,0.63854169,893.65,892.91,0.835]
[1764778398699,0.63854169,893.64,892.91,0.835]
[1764778398899,0.63854169,893.63,892.91,0.835]
[1764778399195,0.63854169,893.62,892.91,0.835]
[1764778399496,0.63860622,893.61,892.91,0.835]
[1764778399701,0.63860622,893.6,892.91,0.835]
[1764778399900,0.63860622,893.59,892.91,0.835]
[1764778400097,0.63860622,893.58,892.91,0.835]
[1764778400398,0.82899676,893.89,892.91,0.835]
[1764778400601,0.63904577,893.88,892.91,0.835]
[1764778400798,0.63904577,893.87,892.91,0.835]
[1764778401001,0.82899676,894.07,892.91,0.835]
[1764778401195,0.63932478,894.06,892.95,1.66612875]
[1764778401399,0.63932478,894.05,892.95,1.66612875]
[1764778401600,0.63932478,894.04,892.95,1.66612875]
[1764778401801,0.63932478,894.03,892.95,1.66612875]
[1764778401999,0.63932478,894.02,892.95,1.66612875]
[1764778402300,0.63932478,894.01,892.94,1.66612875]
[1764778402498,0.63932478,894.0,892.94,1.66612875]
[1764778402799,0.63932478,893.99,892.94,1.66612875]
[1764778402998,0.63932478,893.98,892.94,1.66612875]
[1764778403198,0.63932478,893.97,892.93,1.66612875]
[1764778403400,0.63932478,893.96,892.93,1.66612875]
[1764778403600,0.63932478,893.95,892.93,1.66612875]
[1764778403798,0.63932478,893.94,892.93,1.66612875]
[1764778404003,0.63932478,893.93,892.93,1.66612875]
[1764778404200,0.82899676,894.22,892.92,1.66612875]
[1764778404401,0.63845914,894.21,892.92,1.66612875]
[1764778404603,0.63845914,894.2,892.92,1.66612875]
[1764778404902,0.63845914,894.19,892.92,1.66612875]
[1764778405099,0.63845914,894.18,892.92,1.66612875]
[1764778405402,0.63845914,894.17,892.91,2.50112875]
[1764778405604,0.63845914,894.16,892.91,2.50112875]
[1764778405800,0.63845914,894.15,892.91,2.50112875]
[1764778406101,0.63845914,894.14,892.91,2.50112875]
[1764778406402,0.63845914,894.13,892.91,0.835]
[1764778406604,0.63845914,894.12,892.92,1.047]
[1764778406904,0.82899676,894.24,892.92,1.047]
[1764778406905,0.63845914,894.11,892.92,1.047]
[1764778407201,0.63845914,894.1,892.92,1.047]
[1764778407401,0.63845914,894.09,892.92,1.047]
[1764778407599,0.63845914,894.08,892.92,1.047]
[1764778407904,0.63845914,894.07,892.92,1.047]
[1764778408105,0.63845914,894.06,892.92,1.047]
[1764778408402,0.63845914,894.05,892.92,1.047]
[1764778408601,0.63845914,894.04,892.92,1.047]
[1764778408902,0.63845914,894.03,892.92,1.047]
[1764778409101,0.63845914,894.02,892.92,1.047]
[1764778409305,0.63845914,894.01,892.92,1.047]
[1764778409605,0.63845914,894.0,892.92,1.047]
[1764778409801,0.63845914,893.99,892.92,1.047]
[1764778410105,0.63845914,893.98,892.92,1.047]
[1764778410305,0.82899676,894.27,892.92,1.047]
[1764778410501,0.63778726,894.26,892.92,1.047]
[1764778410701,0.82899676,894.19,892.92,1.047]
[1764778410900,0.63778726,894.18,892.92,1.047]
[1764778411100,0.63778726,894.17,892.92,1.047]
[1764778411300,0.63778726,894.16,892.92,1.047]
[1764778411505,0.63778726,894.15,892.92,1.047]
[1764778411805,0.63778726,894.14,892.92,1.047]
[1764778412003,0.63778726,894.13,892.92,1.047]
[1764778412204,0.63778726,894.12,892.92,1.047]
[1764778412406,0.63778726,894.11,892.92,1.047]
[1764778412702,0.63778726,894.1,892.92,1.047]
[1764778412903,0.63778726,894.09,892.92,1.047]
[1764778413203,0.63778726,894.08,892.92,1.047]
[1764778413405,0.63778726,894.07,892.92,1.047]
[1764778413602,0.63778726,894.06,892.92,1.047]
[1764778413906,0.63778726,894.05,892.92,1.047]
[1764778414103,0.63778726,894.04,892.92,1.047]
[1764778414303,0.63778726,894.03,892.92,1.047]
[1764778414507,0.63778726,894.02,892.92,1.047]
[1764778414706,0.63778726,894.01,892.92,1.047]
[1764778414903,0.63778726,894.0,892.92,1.047]
[1764778415107,0.63778726,893.99,892.92,1.047]
[1764778415303,0.63778726,893.98,892.92,1.047]
[1764778415608,0.63778726,893.97,892.92,1.047]
[1764778415907,0.63778726,893.96,892.92,1.047]
[1764778416107,0.63778726,893.95,892.92,1.047]
[1764778416306,0.63778726,893.94,892.92,1.047]
[1764778416503,0.63778726,893.93,892.92,1.047]
[1764778416808,0.63778726,893.92,892.92,1.047]
[1764778417008,0.63778726,893.91,892.92,1.047]
[1764778417310,0.82899676,894.01,892.92,1.047]
[1764778417311,0.63778726,893.9,892.92,1.047]
[1764778417608,0.63778726,893.89,892.92,1.047]
[1764778417808,0.63778726,893.88,892.92,1.047]
[1764778418005,0.63778726,893.87,892.92,1.047]
[1764778418206,0.63778726,893.86,892.92,1.047]
[1764778418514,0.63778726,893.85,892.92,1.047]
[1764778418708,0.63778726,893.84,892.92,1.047]
[1764778418912,0.63778726,893.83,892.92,1.047]
[1764778419208,0.63778726,893.82,892.92,1.047]
[1764778419412,0.82899676,894.01,892.92,1.047]
[1764778419413,0.63778726,893.81,892.92,1.047]
[1764778419611,0.63778726,893.8,892.93,0.759]
[1764778419809,0.63778726,893.79,892.93,0.759]
[1764778420013,0.63778726,893.78,892.93,0.759]
[1764778420211,0.63778726,893.77,892.93,0.759]
[1764778420513,0.63778726,893.76,892.93,0.759]
[1764778420713,0.63778726,893.75,892.93,0.759]
[1764778420914,0.63778726,893.74,892.93,0.759]
[1764778421214,0.63778726,893.73,892.93,0.759]
[1764778421414,0.82899676,894.02,892.93,0.759]
[1764778421715,0.63666408,894.01,892.93,0.759]
[1764778421928,0.63666408,894.0,892.93,0.759]
[1764778422111,0.63666408,893.99,892.93,0.759]
[1764778422315,0.63666408,893.98,892.93,0.759]
[1764778422512,0.63666408,893.97,892.93,0.759]
[1764778422816,0.63666408,893.96,892.93,0.759]
[1764778423013,0.63666408,893.95,892.93,0.759]
[1764778423216,0.63666408,893.94,892.93,0.759]
[1764778423515,0.63666408,893.93,892.93,0.759]
[1764778423715,0.63666408,893.92,892.93,0.759]
[1764778423917,0.63666408,893.91,892.93,0.759]
[1764778424113,0.63666408,893.9,892.93,0.759]
[1764778424313,0.63666408,893.89,892.93,0.759]
[1764778424518,0.63666408,893.88,892.93,0.759]
[1764778424715,0.63666408,893.87,892.93,0.759]
[1764778424915,0.63666408,893.86,892.93,0.759]
[1764778425215,0.63666408,893.85,892.93,0.759]
[1764778425414,0.63666408,893.84,892.93,0.759]
[1764778425617,0.63666408,893.83,892.93,0.759]
[1764778425817,0.63666408,893.82,892.93,0.759]
[1764778426019,0.63666408,893.81,892.93,0.759]
[1764778426220,0.82899676,894.11,892.93,0.759]
[1764778426416,0.63672929,894.1,892.93,0.759]
[1764778426620,0.63672929,894.09,892.93,0.759]
[1764778426819,0.63672929,894.08,892.93,0.759]
[1764778427020,0.63672929,894.07,892.93,0.759]
[1764778427219,0.63672929,894.06,892.93,0.759]
[1764778427420,0.63672929,894.05,892.93,0.759]
[1764778427620,0.63672929,894.04,892.93,0.759]
[1764778427915,0.63672929,894.03,892.93,0.759]
[1764778428117,0.63672929,894.02,892.93,0.759]
[1764778428421,0.63672929,894.01,892.93,0.759]
[1764778428619,0.63672929,894.0,892.93,0.759]
[1764778428817,0.63672929,893.99,892.93,0.759]
[1764778429016,0.63672929,893.98,892.93,0.759]
[1764778429321,0.63672929,893.97,892.93,0.759]
[1764778429622,0.63672929,893.96,892.93,0.759]
[1764778429921,0.63672929,893.95,892.93,0.759]
[1764778430220,0.63672929,893.94,892.93,0.759]
[1764778430420,0.63672929,893.93,892.93,0.759]
[1764778430618,0.82899676,894.21,892.93,0.759]
[1764778430822,0.63590715,894.2,892.93,0.759]
[1764778431017,0.63590715,894.19,892.93,0.759]
[1764778431317,0.63590715,894.18,892.93,0.759]
[1764778431518,0.63590715,894.17,892.94,0.863]
[1764778431821,0.82899676,894.21,892.94,0.863]
[1764778431822,1.11152161,894.37,892.94,0.863]
[1764778432023,0.82638465,894.21,892.94,0.863]
[1764778432223,0.63589999,894.2,892.94,0.863]
[1764778432523,0.82638465,894.11,892.94,0.863]
[1764778432723,0.63589999,894.1,892.94,0.863]
[1764778432920,0.63589999,894.09,892.94,0.863]
[1764778433220,0.63589999,894.08,892.94,0.863]
[1764778433420,0.63589999,894.07,892.94,0.863]
[1764778433624,0.63589999,894.06,892.94,0.863]
[1764778433825,0.63589999,894.05,892.94,0.863]
[1764778434125,0.63589999,894.04,892.94,0.863]
[1764778434321,0.63589999,894.03,892.94,0.863]
[1764778434524,0.63589999,894.02,892.94,0.863]
[1764778434723,0.63589999,894.01,892.94,0.863]
[1764778434924,0.63589999,894.0,892.94,0.863]
[1764778435124,0.63589999,893.99,892.94,0.863]
[1764778435328,0.63589999,893.98,892.94,0.863]
[1764778435527,0.63589999,893.97,892.94,0.863]
[1764778435828,0.63589999,893.96,892.94,0.863]
[1764778436024,0.63589999,893.95,892.94,0.863]
[1764778436224,0.63589999,893.94,892.94,0.863]
[1764778436429,0.63589999,893.93,892.94,0.863]
[1764778436724,0.63589999,893.92,892.94,0.863]
[1764778436929,0.63589999,893.91,892.94,0.863]
[1764778437230,0.63589999,893.9,892.94,0.863]
[1764778437529,0.63589999,893.89,892.94,0.863]
[1764778437728,0.63589999,893.88,892.94,0.863]
[1764778438026,0.63589999,893.87,892.94,0.863]
[1764778438226,0.82638465,894.21,892.94,0.863]
[1764778439927,1.46233044,894.2,892.94,0.863]
[1764778440230,0.82638465,894.18,892.94,0.863]
[1764778440529,0.82638465,894.11,892.94,0.863]
[1764778441027,1.46233044,894.1,892.94,0.863]
[1764778441230,0.63594579,894.09,892.94,0.863]
[1764778441430,0.63594579,894.08,892.94,0.863]
[1764778441731,0.19470601,894.39,892.94,0.863]
[1764778441732,0.63594579,894.07,892.94,0.863]
[1764778441929,0.63594579,894.06,892.94,0.863]
[1764778442230,0.63594579,894.05,892.94,0.863]
[1764778442431,0.63594579,894.04,892.94,0.863]
[1764778442632,0.63594579,894.03,892.94,0.863]
[1764778442834,0.63594579,894.02,892.94,0.863]
[1764778443033,0.63594579,894.01,892.94,0.863]
[1764778443232,0.63594579,894.0,892.94,0.863]
[1764778443434,0.63594579,893.99,892.94,0.863]
[1764778443630,0.63594579,893.98,892.94,0.863]
[1764778443834,0.63594579,893.97,892.94,0.863]
[1764778444033,0.63594579,893.96,892.94,0.863]
[1764778444233,0.63594579,893.95,892.94,0.863]
[1764778444530,0.63594579,893.94,892.94,0.863]
[1764778444733,0.82638465,894.4,893.02,1.66612875]
[1764778444930,0.63690015,894.39,893.05,1.66612875]
[1764778445133,0.63690015,894.38,893.06,1.66612875]
[1764778445333,0.63690015,894.37,893.05,1.66612875]
[1764778445531,0.63690015,894.36,893.05,1.66612875]
[1764778445836,0.63690015,894.35,893.05,1.66612875]
[1764778446036,0.63690015,894.34,893.05,1.66612875]
[1764778446233,0.63690015,894.33,893.07,1.66612875]
[1764778446434,0.63690015,894.32,893.06,1.66612875]
[1764778446637,0.63690015,894.31,893.06,1.66612875]
[1764778446838,0.63690015,894.3,893.06,1.66612875]
[1764778447133,0.1946238,894.81,893.07,1.66612875]
[1764778447134,0.63690015,894.29,893.07,1.66612875]
[1764778447333,0.63690015,894.28,893.07,1.66612875]
[1764778447531,0.82638465,894.41,892.94,0.863]
[1764778447532,0.63690015,894.27,893.06,1.66612875]
[1764778447733,0.63690015,894.26,893.06,1.66612875]
[1764778447932,0.63690015,894.25,893.06,1.66612875]
[1764778448132,0.63690015,894.24,893.06,1.66612875]
[1764778448332,0.63690015,894.23,893.08,1.66612875]
[1764778448534,0.63690015,894.22,893.07,1.66612875]
[1764778448734,0.63690015,894.21,893.07,1.66612875]
[1764778448937,0.63690015,894.2,893.07,1.66612875]
[1764778449138,0.63690015,894.19,893.07,1.66612875]
[1764778449435,0.63690015,894.18,893.08,1.66612875]
[1764778449633,0.63690015,894.17,893.08,1.66612875]
[1764778449833,0.63690015,894.16,893.08,1.66612875]
[1764778450037,0.63690015,894.15,893.08,1.66612875]
[1764778450238,0.63690015,894.14,893.09,1.66612875]
[1764778450534,0.63690015,894.13,893.09,1.66612875]
[1764778450733,0.63690015,894.12,893.09,1.66612875]
[1764778450932,0.63690015,894.11,893.09,1.66612875]
[1764778451136,0.82638465,894.39,893.09,1.66612875]
[1764778451336,0.6373652,894.38,893.09,1.66612875]
[1764778451534,0.6373652,894.37,893.09,1.66612875]
[1764778451738,0.6373652,894.36,893.09,1.66612875]
[1764778451939,0.6373652,894.35,893.09,1.66612875]
[1764778452141,0.6373652,894.34,893.09,1.66612875]
[1764778452336,0.6373652,894.33,893.09,1.66612875]
[1764778452638,0.6373652,894.32,893.09,1.66612875]
[1764778452834,0.6373652,894.31,893.09,1.66612875]
[1764778453034,0.6373652,894.3,893.09,1.66612875]
[1764778453236,0.6373652,894.29,893.09,1.66612875]
[1764778453438,0.6373652,894.28,893.09,1.66612875]
[1764778453638,0.6373652,894.27,893.09,1.66612875]
[1764778453838,0.6373652,894.26,893.09,1.66612875]
[1764778454037,0.6373652,894.25,893.09,1.66612875]
[1764778454237,0.6373652,894.24,893.1,1.66612875]
[1764778454438,0.6373652,894.23,893.09,1.66612875]
[1764778454638,0.6373652,894.22,893.09,1.66612875]
[1764778454839,0.6373652,894.21,893.09,1.66612875]
[1764778455039,0.6373652,894.2,893.09,1.66612875]
[1764778455239,0.6373652,894.19,893.1,1.66612875]
[1764778455438,0.6373652,894.18,893.09,1.66612875]
[1764778455636,0.6373652,894.17,893.09,1.66612875]
[1764778455840,0.6373652,894.16,893.09,1.66612875]
[1764778456136,0.6373652,894.15,893.09,1.66612875]
[1764778456340,0.6373652,894.14,893.09,1.66612875]
[1764778456538,0.6373652,894.13,893.09,1.66612875]
[1764778456737,0.6373652,894.12,893.09,1.66612875]
[1764778456936,0.6373652,894.11,893.09,1.66612875]
[1764778457142,0.6373652,894.1,893.09,1.66612875]
[1764778457437,0.82638465,894.39,893.09,1.66612875]
[1764778458144,0.82638465,894.38,893.09,1.66612875]
[1764778458840,0.63744714,894.37,893.17,1.66612875]
[1764778459141,0.63744714,894.36,893.17,1.66612875]
[1764778459340,0.63744714,894.35,893.18,1.66612875]
[1764778459541,0.63744714,894.34,893.17,1.66612875]
[1764778459737,0.63744714,894.33,893.17,1.66612875]
[1764778459943,0.63744714,894.32,893.17,1.66612875]
[1764778460141,0.63744714,894.31,893.17,1.66612875]
[1764778460344,0.63744714,894.3,893.17,1.66612875]
[1764778460543,0.63744714,894.29,893.17,1.66612875]
[1764778460740,0.63744714,894.28,893.17,1.66612875]
[1764778460944,0.63744714,894.27,893.17,1.66612875]
[1764778461140,0.63744714,894.26,893.17,1.66612875]
[1764778461344,0.63744714,894.25,893.17,1.66612875]
[1764778461544,0.63744714,894.24,893.17,1.66612875]
[1764778461743,0.63744714,894.23,893.17,1.66612875]
[1764778461941,0.63744714,894.22,893.17,1.66612875]
[1764778462240,0.63744714,894.21,893.16,1.66612875]
[1764778462538,0.63744714,894.2,893.16,1.66612875]
[1764778462741,0.82638465,894.48,893.16,1.66612875]
[1764778463449,0.63673379,894.47,893.15,1.66612875]
[1764778463745,0.63673379,894.46,893.15,1.66612875]
[1764778463946,0.63673379,894.45,893.15,1.66612875]
[1764778464142,0.63673379,894.44,893.15,1.66612875]
[1764778464445,0.63673379,894.43,893.15,1.66612875]
[1764778464741,0.63673379,894.42,893.15,1.66612875]
[1764778464947,0.63673379,894.41,893.15,1.66612875]
[1764778465247,0.63673379,894.4,893.15,1.66612875]
[1764778465445,0.63673379,894.39,893.14,1.66612875]
[1764778465642,0.63673379,894.38,893.14,1.66612875]
[1764778465846,0.63673379,894.37,893.14,1.66612875]
[1764778466047,0.63673379,894.36,893.16,1.66612875]
[1764778466248,8.89217293,897.22,893.1,0.954]
[1764778466249,0.82638465,894.71,893.35,1.66612875]
[1764778466549,0.63639538,894.7,893.34,1.66612875]
[1764778466746,0.63639538,894.69,893.34,1.66612875]
[1764778466945,0.63639538,894.68,893.34,1.66612875]
[1764778467145,0.63639538,894.67,893.34,1.66612875]
[1764778467345,0.63639538,894.66,893.32,1.66612875]
[1764778467543,0.63639538,894.65,893.32,1.66612875]
[1764778467749,0.63639538,894.64,893.32,1.66612875]
[1764778468048,0.63639538,894.63,893.32,1.66612875]
[1764778468246,0.63639538,894.62,893.32,1.66612875]
[1764778468445,0.63639538,894.61,893.31,1.66612875]
[1764778468645,0.63639538,894.6,893.31,1.66612875]
[1764778468847,0.63639538,894.59,893.31,1.66612875]
[1764778469048,0.63639538,894.58,893.31,1.66612875]
[1764778469248,0.63639538,894.57,893.31,1.66612875]
[1764778469447,0.63639538,894.56,893.3,1.66612875]
[1764778469645,0.63639538,894.55,893.3,1.66612875]
[1764778469849,0.63639538,894.54,893.3,1.66612875]
[1764778470149,0.63639538,894.53,893.3,1.66612875]
[1764778470351,0.63639538,894.52,893.29,1.66612875]
[1764778470647,0.63639538,894.51,893.26,1.66612875]
[1764778470950,0.63639538,894.5,893.26,1.66612875]
[1764778471150,0.63639538,894.49,893.26,1.66612875]
[1764778471349,0.63639538,894.48,893.25,1.66612875]
[1764778471653,0.63639538,894.47,893.25,1.66612875]
[1764778471953,0.82638465,894.76,893.25,1.66612875]
[1764778472453,0.63553384,894.75,893.24,1.66612875]
[1764778472648,0.63553384,894.74,893.24,1.66612875]
[1764778472854,0.63553384,894.73,893.24,1.66612875]
[1764778473054,0.63553384,894.72,893.24,1.66612875]
[1764778473253,0.63553384,894.71,893.21,1.66612875]
[1764778473451,0.63553384,894.7,893.21,1.66612875]
[1764778473751,0.63553384,894.69,893.21,1.66612875]
[1764778473953,0.63553384,894.68,893.21,1.66612875]
[1764778474255,0.82638465,894.75,893.21,1.66612875]
[1764778474256,0.63553384,894.67,893.21,1.66612875]
[1764778474455,0.63553384,894.66,893.2,1.66612875]
[1764778474650,0.63553384,894.65,893.2,1.66612875]
[1764778474848,0.63553384,894.64,893.13,1.66612875]
[1764778475053,0.63553384,894.63,893.13,1.66612875]
[1764778475251,0.63553384,894.62,893.12,1.66612875]
[1764778475550,0.82638465,894.68,893.12,1.66612875]
[1764778475551,0.63553384,894.61,893.12,1.66612875]
[1764778475754,0.82638465,894.68,893.12,1.66612875]
[1764778475755,0.63553384,894.6,893.12,1.66612875]
[1764778475956,0.63553384,894.59,893.12,1.66612875]
[1764778476153,0.63553384,894.58,893.12,1.66612875]
[1764778476353,0.63553384,894.57,893.12,1.66612875]
[1764778476653,0.63553384,894.56,893.12,1.66612875]
[1764778476857,0.63553384,894.55,893.12,1.66612875]
[1764778477056,0.63553384,894.54,893.12,1.66612875]
[1764778477257,0.63553384,894.53,893.13,1.66612875]
[1764778477557,0.63553384,894.52,893.13,1.66612875]
[1764778477754,0.63553384,894.51,893.13,1.66612875]
[1764778478057,0.63553384,894.5,893.13,1.66612875]
[1764778478254,0.63553384,894.49,893.13,1.66612875]
[1764778478458,0.63553384,894.48,893.13,1.66612875]
[1764778478654,0.63553384,894.47,893.13,1.66612875]
[1764778478858,0.63553384,894.46,893.13,1.66612875]
[1764778479155,0.63553384,894.45,893.14,1.66612875]
[1764778479355,0.63553384,894.44,893.14,1.66612875]
[1764778479655,0.82638465,894.67,893.14,1.66612875]
[1764778479656,0.63553384,894.43,893.14,2.63212875]
[1764778479854,0.63553384,894.42,893.14,2.63212875]
[1764778480057,0.63553384,894.41,893.14,2.63212875]
[1764778480262,0.63553384,894.4,893.14,2.63212875]
[1764778480460,0.63553384,894.39,893.14,2.63212875]
[1764778480656,0.63553384,894.38,893.15,0.672]
[1764778480956,0.63553384,894.37,893.15,0.672]
[1764778481256,0.82638465,894.66,893.15,2.33812875]
[1764778481454,1.46212861,894.65,893.15,2.33812875]
[1764778481658,0.63574396,894.64,893.15,2.33812875]
[1764778481856,0.63574396,894.63,893.15,2.33812875]
[1764778482055,0.63574396,894.62,893.15,2.33812875]
[1764778482260,0.63574396,894.61,893.15,2.33812875]
[1764778482458,0.63574396,894.6,893.15,2.33812875]
[1764778482660,0.63574396,894.59,893.15,2.33812875]
[1764778482859,0.63574396,894.58,893.15,2.33812875]
[1764778483059,0.63574396,894.57,893.15,2.33812875]
[1764778483257,0.63574396,894.56,893.16,1.66612875]
[1764778483456,0.63574396,894.55,893.16,1.66612875]
[1764778483656,0.63574396,894.54,893.16,1.66612875]
[1764778483861,0.63574396,894.53,893.16,1.66612875]
[1764778484060,0.63574396,894.52,893.16,1.66612875]
[1764778484258,0.63574396,894.51,893.16,1.66612875]
[1764778484458,0.63574396,894.5,893.16,1.66612875]
[1764778484658,0.63574396,894.49,893.15,0.672]
[1764778484863,0.63574396,894.48,893.15,0.672]
[1764778485058,0.63574396,894.47,893.15,0.672]
[1764778485261,0.63574396,894.46,893.15,0.672]
[1764778485464,0.63574396,894.45,893.15,0.672]
[1764778485662,0.63574396,894.44,893.15,0.672]
[1764778485859,0.63574396,894.43,893.15,0.672]
[1764778486062,0.63574396,894.42,893.15,0.672]
[1764778486261,0.63574396,894.41,893.15,0.672]
[1764778486464,0.63574396,894.4,893.15,0.672]
[1764778486666,0.63574396,894.39,893.15,0.672]
[1764778486861,0.63574396,894.38,893.15,0.672]
[1764778487064,0.63574396,894.37,893.15,0.672]
[1764778487264,0.63574396,894.36,893.15,0.672]
[1764778487561,0.63574396,894.35,893.15,0.672]
[1764778487761,0.63574396,894.34,893.15,0.672]
[1764778487964,0.63574396,894.33,893.15,0.672]
[1764778488165,0.63574396,894.32,893.15,0.672]
[1764778488363,0.63574396,894.31,893.15,0.672]
[1764778488563,0.63574396,894.3,893.15,0.672]
[1764778488762,0.63574396,894.29,893.15,0.672]
[1764778488961,0.63574396,894.28,893.15,0.672]
[1764778489166,0.63574396,894.27,893.15,0.672]
[1764778489368,0.63574396,894.26,893.15,0.672]
[1764778489566,0.63574396,894.25,893.15,0.672]
[1764778489866,0.63574396,894.24,893.15,0.672]
[1764778490064,0.63574396,894.23,893.15,0.672]
[1764778490263,0.63574396,894.22,893.15,0.672]
[1764778490464,0.63574396,894.21,893.15,0.672]
[1764778490670,0.63574396,894.2,893.15,0.672]
[1764778490869,0.63574396,894.19,893.15,0.672]
[1764778491066,0.63574396,894.18,893.15,0.672]
[1764778491268,0.63574396,894.17,893.15,0.672]
[1764778491470,0.63574396,894.16,893.15,0.672]
[1764778491666,0.63574396,894.15,893.15,0.672]
[1764778491869,0.63574396,894.14,893.15,0.672]
[1764778492069,0.63574396,894.13,893.15,0.672]
[1764778492372,0.63574396,894.12,893.15,0.672]
[1764778492573,0.63574396,894.11,893.15,0.672]
[1764778492773,0.63574396,894.1,893.15,0.672]
[1764778492969,0.63574396,894.09,893.15,0.672]
[1764778493271,0.63574396,894.08,893.15,0.672]
[1764778493474,0.63574396,894.07,893.15,0.672]
[1764778493668,0.82638465,894.34,893.15,0.672]
[1764778494273,1.46212861,894.33,893.15,0.672]
[1764778494471,0.63574396,894.32,893.15,0.672]
[1764778494675,0.63574396,894.31,893.15,0.672]
[1764778494876,0.63574396,894.3,893.15,0.672]
[1764778495172,1.11152161,894.49,893.15,0.672]
[1764778495173,0.63574396,894.29,893.15,0.672]
[1764778495377,0.63574396,894.28,893.15,0.672]
[1764778495676,0.63574396,894.27,893.15,0.672]
[1764778495877,0.63574396,894.26,893.15,0.672]
[1764778496077,0.63574396,894.25,893.15,0.672]
[1764778496378,0.63574396,894.24,893.15,0.672]
[1764778496577,0.63574396,894.23,893.15,0.672]
[1764778496777,0.63574396,894.22,893.15,0.672]
[1764778496978,0.63574396,894.21,893.15,0.672]
[1764778497178,0.63574396,894.2,893.15,0.672]
[1764778497379,0.63574396,894.19,893.16,1.66612875]
[1764778497674,0.63574396,894.18,893.16,1.66612875]
[1764778497878,0.63574396,894.17,893.16,1.66612875]